bitfinex/quotes_SOLUSD_20250622
["timestamp","ask_amount","ask_price","bid_price","bid_amount"]
[1750589531587,6.72,133.46,133.44,18.64964886]
[1750589532574,6.72,133.46,133.39,26.23877386]
[1750589532774,6.72,133.46,133.4,18.64964886]
[1750589533569,6.72,133.46,133.42,18.64964886]
[1750589535293,6.72,133.46,133.44,18.64964886]
[1750589536988,6.72,133.46,133.39,26.23884253]
[1750589537191,14.21288825,133.46,133.42,18.64964886]
[1750589538489,6.72,133.46,133.42,26.14462899]
[1750589538864,5.58514686,133.47,133.42,26.14462899]
[1750589539074,1.7838,133.48,133.42,44.8824494]
[1750589540110,51.28,133.49,133.44,18.64964886]
[1750589540286,51.28,133.49,133.46,18.64964886]
[1750589541989,51.28,133.49,133.48,18.64964886]
[1750589542502,51.28,133.49,133.44,7.49400479]
[1750589542800,51.28,133.49,133.44,26.14365365]
[1750589543490,51.28,133.49,133.44,44.87866564]
[1750589543889,51.28,133.49,133.44,7.49400479]
[1750589544087,51.28,133.49,133.42,26.14477702]
[1750589544088,5.57782559,133.48,133.42,26.14477702]
[1750589544270,26.0,133.45,133.37,7.767]
[1750589544475,26.0,133.45,133.38,26.23947786]
[1750589544692,26.0,133.45,133.39,18.64964886]
[1750589545481,26.0,133.45,133.41,18.64964886]
[1750589545906,33.49351387,133.45,133.41,18.64964886]
[1750589546805,33.49351387,133.45,133.34,7.5853]
[1750589546806,33.49351387,133.45,133.35,20.59253139]
[1750589547007,1.7674,133.43,133.36,18.64964886]
[1750589547316,6.7,133.42,133.36,18.64964886]
[1750589547604,14.19516296,133.42,133.36,26.14814915]
[1750589547813,40.19516296,133.42,133.36,26.14814915]
[1750589548196,30.86,133.41,133.36,26.14814915]
[1750589548393,36.43782559,133.41,133.36,26.14814915]
[1750589548911,43.93379502,133.41,133.36,26.14814915]
[1750589550605,43.93379502,133.41,133.35,18.64964886]
[1750589551699,43.93379502,133.41,133.35,7.49858286]
[1750589552694,43.93379502,133.41,133.35,18.64964886]
[1750589553320,27.7653,133.38,133.33,7.50008003]
[1750589554215,27.7653,133.38,133.32,7.50075007]
[1750589554717,35.26268431,133.38,133.32,7.50075007]
[1750589555716,27.7653,133.38,133.32,7.50075007]
[1750589558718,27.7653,133.38,133.33,18.64964886]
[1750589559018,27.7653,133.38,133.35,18.64964886]
[1750589560011,35.26281641,133.38,133.31,18.64964886]
[1750589560511,35.26281641,133.38,133.3,26.15152432]
[1750589561910,27.7653,133.38,133.3,44.90621299]
[1750589563715,6.7,133.37,133.32,18.64964886]
[1750589563902,6.7,133.37,133.33,7.5001875]
[1750589567919,6.7,133.37,133.34,18.64964886]
[1750589570120,6.7,133.37,133.35,7.49906261]
[1750589570822,1.9183,133.41,133.36,18.64964886]
[1750589572195,1.9183,133.41,133.38,18.64964886]
[1750589574226,1.9183,133.41,133.4,18.64964886]
[1750589576122,6.7,133.42,133.4,18.64964886]
[1750589576616,6.7,133.42,133.4,7.49621016]
[1750589577528,1.8788,133.45,133.4,7.49621016]
[1750589577701,8.5788,133.45,133.41,18.64964886]
[1750589578634,8.5788,133.45,133.43,18.64964886]
[1750589580531,8.5788,133.45,133.43,7.49450945]
[1750589580835,8.5788,133.45,133.41,18.64964886]
[1750589582633,8.5788,133.45,133.41,26.14511948]
[1750589583824,14.15361161,133.45,133.41,26.14511948]
[1750589584231,8.5788,133.45,133.41,26.14511948]
[1750589584535,14.15689108,133.45,133.41,26.14511948]
[1750589585234,8.5788,133.45,133.41,26.14511948]
[1750589586340,14.16027554,133.45,133.41,26.14511948]
[1750589587106,8.5788,133.45,133.41,26.14511948]
[1750589589217,6.7,133.45,133.41,26.14511948]
[1750589590338,6.7,133.45,133.39,44.88849734]
[1750589593817,6.7,133.45,133.41,18.64964886]
[1750589594133,6.7,133.45,133.43,18.64964886]
[1750589595443,6.7,133.45,133.44,26.14365365]
[1750589596923,6.7,133.45,133.37,1.9261]
[1750589597127,1.8136,133.44,133.37,18.74375575]
[1750589597334,1.8136,133.44,133.38,18.64964886]
[1750589597532,1.8136,133.44,133.38,26.0]
[1750589597923,1.8136,133.44,133.39,18.64964886]
[1750589598123,6.7,133.45,133.39,18.64964886]
[1750589600544,6.7,133.45,133.41,18.64964886]
[1750589602425,6.7,133.45,133.42,7.49512816]
[1750589603022,1.8136,133.47,133.43,18.64964886]
[1750589603230,7.49015897,133.51,133.43,18.64964886]
[1750589603231,6.7,133.49,133.43,18.64964886]
[1750589604452,6.7,133.49,133.45,18.64964886]
[1750589606445,6.7,133.49,133.45,7.49336384]
[1750589608345,6.7,133.49,133.44,7.49400479]
[1750589608648,14.19136572,133.49,133.44,7.49400479]
[1750589609354,6.7,133.49,133.44,7.49400479]
[1750589612657,19.77083503,133.49,133.44,7.49400479]
[1750589612836,14.19121776,133.49,133.44,7.49400479]
[1750589613037,19.77083503,133.49,133.44,7.49400479]
[1750589613347,14.19121776,133.49,133.43,18.64964886]
[1750589613551,5.57961727,133.48,133.43,18.64964886]
[1750589615181,5.57961727,133.48,133.43,7.49418075]
[1750589615541,5.57961727,133.47,133.43,7.49418075]
[1750589615746,5.57961727,133.48,133.43,7.49418075]
[1750589616346,12.27961727,133.49,133.43,7.49418075]
[1750589616755,5.57961727,133.48,133.43,7.49418075]
[1750589617463,13.07146211,133.48,133.43,7.49418075]
[1750589617637,5.57961727,133.47,133.43,7.49418075]
[1750589617831,26.0,133.44,133.39,7.49681385]
[1750589618038,1.7859,133.46,133.35,3.78815922]
[1750589618039,6.68,133.43,133.35,7.49906261]
[1750589618258,1.7859,133.41,133.35,26.24552081]
[1750589618639,7.36551727,133.41,133.36,18.64964886]
[1750589618966,9.4944,133.41,133.36,18.64964886]
[1750589619262,9.4944,133.41,133.38,18.64964886]
[1750589619971,1.7859,133.41,133.38,18.64964886]
[1750589621145,1.7859,133.41,133.4,18.64964886]
[1750589622170,6.68,133.43,133.4,18.64964886]
[1750589623371,12.27878244,133.43,133.4,7.4962117]
[1750589623570,6.68,133.43,133.4,7.4962117]
[1750589624270,12.27878244,133.43,133.39,7.49681385]
[1750589624473,6.68,133.43,133.39,7.49681385]
[1750589624666,12.27878244,133.43,133.39,7.49681385]
[1750589624867,6.68,133.43,133.39,7.49681385]
[1750589625070,12.27878244,133.43,133.39,7.49681385]
[1750589625261,6.68,133.43,133.39,7.49681385]
[1750589625580,6.68,133.43,133.4,18.64964886]
[1750589626379,6.68,133.43,133.42,18.64964886]
[1750589631969,6.68,133.43,133.39,18.64964886]
[1750589632568,12.27878244,133.43,133.39,18.64964886]
[1750589633993,12.27878244,133.43,133.39,7.49657693]
[1750589635270,5.59878244,133.42,133.39,7.49657693]
[1750589635473,12.27878244,133.43,133.39,7.49657693]
[1750589636294,12.27878244,133.43,133.37,7.49793806]
[1750589636507,12.27878244,133.43,133.38,18.64964886]
[1750589637385,6.68,133.43,133.38,18.64964886]
[1750589637595,6.68,133.43,133.39,7.49681385]
[1750589639387,6.68,133.43,133.38,18.64964886]
[1750589641295,6.68,133.43,133.39,7.49681385]
[1750589641498,12.27246599,133.43,133.39,7.49681385]
[1750589641673,6.68,133.43,133.39,7.49681385]
[1750589642199,5.59246599,133.42,133.38,18.64964886]
[1750589642395,40.17457088,133.43,133.38,18.64964886]
[1750589642578,192.66703687,133.43,133.38,18.64964886]
[1750589642898,5.59246599,133.42,133.38,18.64964886]
[1750589644902,13.08763775,133.42,133.38,18.64964886]
[1750589645199,13.08763775,133.42,133.38,7.497361]
[1750589645692,13.08763775,133.42,133.38,18.64964886]
[1750589646195,5.59246599,133.42,133.38,18.64964886]
[1750589649578,5.59246599,133.42,133.38,7.49722558]
[1750589649800,7.49986599,133.41,133.34,18.64964886]
[1750589650102,1.9074,133.41,133.34,18.64964886]
[1750589650278,7.49986599,133.41,133.34,18.64964886]
[1750589650477,7.49986599,133.41,133.36,18.64964886]
[1750589652180,32.68,133.43,133.36,18.64964886]
[1750589652595,32.68,133.43,133.35,52.24671915]
[1750589652596,32.68,133.43,133.38,18.64964886]
[1750589652794,38.27390782,133.43,133.38,18.64964886]
[1750589653385,5.59390782,133.42,133.38,18.64964886]
[1750589653584,38.27390782,133.43,133.38,18.64964886]
[1750589653805,32.68,133.43,133.38,18.64964886]
[1750589654788,32.68,133.43,133.39,7.49681385]
[1750589654984,38.27390782,133.43,133.4,18.64964886]
[1750589655991,5.59390782,133.42,133.4,18.64964886]
[1750589656196,38.27390782,133.43,133.4,18.64964886]
[1750589656405,12.27390782,133.43,133.4,18.64964886]
[1750589656586,6.68,133.43,133.4,18.64964886]
[1750589657212,12.27390782,133.43,133.41,7.49568997]
[1750589658392,5.59390782,133.42,133.41,26.14533883]
[1750589658592,12.27390782,133.43,133.41,7.49568997]
[1750589659027,12.27390782,133.43,133.39,7.49681385]
[1750589659794,12.27390782,133.43,133.4,18.64964886]
[1750589659992,6.68,133.43,133.4,18.64964886]
[1750589660219,12.27390782,133.43,133.4,18.64964886]
[1750589660418,5.59390782,133.42,133.4,18.64964886]
[1750589660918,5.59390782,133.42,133.4,7.49613757]
[1750589661297,5.59390782,133.41,133.4,7.49613757]
[1750589661508,5.59390782,133.42,133.4,7.49613757]
[1750589661701,5.59390782,133.41,133.4,7.49613757]
[1750589661908,5.59390782,133.42,133.4,7.49613757]
[1750589662204,5.59390782,133.41,133.4,18.64964886]
[1750589663014,5.59390782,133.41,133.38,18.64964886]
[1750589663223,5.59390782,133.4,133.38,18.64964886]
[1750589663412,5.61359604,133.39,133.37,18.64964886]
[1750589663609,21.72304336,133.43,133.37,18.64964886]
[1750589663813,5.61356839,133.42,133.37,18.64964886]
[1750589664025,5.61356839,133.41,133.37,18.64964886]
[1750589664325,5.61356839,133.4,133.37,18.64964886]
[1750589664519,5.61356839,133.39,133.38,7.49737591]
[1750589664818,5.61356839,133.42,133.38,7.49737591]
[1750589665031,5.61356839,133.41,133.38,7.49737591]
[1750589665211,5.61356839,133.4,133.38,7.49737591]
[1750589665411,5.61356839,133.39,133.38,7.49737591]
[1750589666422,5.61356839,133.39,133.37,7.49793806]
[1750589666622,5.61293656,133.41,133.37,7.49793806]
[1750589666821,5.61293656,133.4,133.37,7.49793806]
[1750589667013,5.61293656,133.39,133.37,7.49793806]
[1750589667205,26.0,133.42,133.37,7.49793806]
[1750589667407,5.61296772,133.41,133.37,7.49793806]
[1750589667615,5.61296772,133.4,133.37,7.49793806]
[1750589667821,5.61296772,133.39,133.37,7.49793806]
[1750589668015,26.0,133.42,133.37,7.49793806]
[1750589668218,5.6131315,133.41,133.37,7.49793806]
[1750589668514,5.6131315,133.4,133.37,7.49793806]
[1750589668711,5.6131315,133.39,133.37,7.49793806]
[1750589668928,5.6131315,133.38,133.34,18.64964886]
[1750589669215,12.29352238,133.37,133.31,26.15096158]
[1750589669427,5.61352238,133.36,133.31,26.15096158]
[1750589669736,6.68,133.37,133.31,26.15096158]
[1750589670033,5.61177804,133.36,133.31,26.15096158]
[1750589670244,5.61181306,133.36,133.31,26.15096158]
[1750589672309,6.68,133.37,133.31,26.15096158]
[1750589672626,12.29181306,133.37,133.31,26.15096158]
[1750589672828,6.68,133.37,133.31,26.15096158]
[1750589673012,5.61181306,133.36,133.31,26.15096158]
[1750589673206,6.68,133.37,133.31,26.15096158]
[1750589673419,5.61181306,133.36,133.31,26.15096158]
[1750589674534,6.68,133.37,133.31,26.15096158]
[1750589674834,12.29181306,133.37,133.31,26.15096158]
[1750589675008,6.68,133.37,133.31,26.15096158]
[1750589675209,12.29181306,133.37,133.31,26.15096158]
[1750589675427,6.68,133.37,133.31,26.15096158]
[1750589675638,12.29181306,133.37,133.31,26.15096158]
[1750589675838,6.68,133.37,133.31,44.9042434]
[1750589676017,12.29181306,133.37,133.31,44.9042434]
[1750589676211,6.68,133.37,133.31,44.9042434]
[1750589676411,12.29181306,133.37,133.31,44.9042434]
[1750589676635,6.68,133.37,133.31,44.9042434]
[1750589676931,12.29181306,133.37,133.31,44.9042434]
[1750589677121,6.68,133.37,133.31,44.9042434]
[1750589677323,12.29181306,133.37,133.31,44.9042434]
[1750589677511,6.68,133.37,133.31,44.9042434]
[1750589677709,12.29181306,133.37,133.31,44.9042434]
[1750589677938,6.68,133.37,133.31,44.9042434]
[1750589679124,6.68,133.37,133.33,18.64964886]
[1750589679617,6.68,133.37,133.35,18.64964886]
[1750589682839,6.68,133.37,133.35,7.49895554]
[1750589683314,6.68,133.37,133.34,7.49937848]
[1750589683515,6.68,133.37,133.35,18.64964886]
[1750589686357,6.68,133.37,133.31,7.50131272]
[1750589686513,12.28259016,133.37,133.32,18.64964886]
[1750589688320,12.28259016,133.37,133.34,18.64964886]
[1750589688628,6.68,133.37,133.34,18.64964886]
[1750589690428,6.68,133.37,133.34,7.49959843]
[1750589691424,6.68,133.37,133.34,18.64964886]
[1750589692542,6.68,133.37,133.34,7.49951923]
[1750589693748,6.68,133.37,133.34,18.64964886]
[1750589695848,6.68,133.37,133.35,7.49906261]
[1750589696752,6.68,133.37,133.36,18.64964886]
[1750589697745,6.68,133.37,133.36,7.49850029]
[1750589699355,14.0915539,133.42,133.37,18.64964886]
[1750589699732,14.0915539,133.42,133.39,18.64964886]
[1750589700556,14.0915539,133.42,133.38,7.49737591]
[1750589700735,5.5992539,133.41,133.37,7.49773792]
[1750589700930,26.0,133.4,133.32,18.75180748]
[1750589701138,5.5992539,133.39,133.33,18.64964886]
[1750589701760,5.5992539,133.39,133.33,26.14983636]
[1750589703262,5.5992539,133.38,133.33,26.14983636]
[1750589703558,5.5992539,133.39,133.33,26.14983636]
[1750589703747,5.5992539,133.38,133.33,26.14983636]
[1750589704057,6.66,133.37,133.33,26.14983636]
[1750589704451,12.2592539,133.37,133.33,26.14983636]
[1750589704753,6.66,133.37,133.33,26.14983636]
[1750589705130,12.2592539,133.37,133.33,26.14983636]
[1750589705434,6.66,133.37,133.33,26.14983636]
[1750589705835,12.2592539,133.37,133.33,26.14983636]
[1750589706034,6.66,133.37,133.33,26.14983636]
[1750589706458,12.2592539,133.37,133.33,26.14983636]
[1750589706659,6.66,133.37,133.33,26.14983636]
[1750589707040,12.2592539,133.37,133.33,26.14983636]
[1750589707352,6.66,133.37,133.33,26.14983636]
[1750589707564,8.609,133.37,133.33,26.14983636]
[1750589708538,5.61295539,133.36,133.33,26.14983636]
[1750589708966,8.609,133.37,133.33,26.14983636]
[1750589709658,14.22261567,133.37,133.33,26.14983636]
[1750589709844,8.609,133.37,133.33,26.14983636]
[1750589711362,5.61517859,133.36,133.33,26.14983636]
[1750589713963,8.609,133.37,133.33,26.14983636]
[1750589714163,5.61680983,133.36,133.33,26.14983636]
[1750589714462,8.609,133.37,133.33,26.14983636]
[1750589714652,5.61692894,133.36,133.33,26.14983636]
[1750589714966,6.66,133.37,133.33,44.90030512]
[1750589716459,12.27614598,133.37,133.33,44.90030512]
[1750589716670,6.66,133.37,133.33,44.90030512]
[1750589717774,5.61675862,133.36,133.33,44.90030512]
[1750589718443,6.66,133.37,133.33,44.90030512]
[1750589718959,5.61691966,133.36,133.33,44.90030512]
[1750589719165,6.66,133.37,133.33,44.90030512]
[1750589719365,5.61691974,133.36,133.33,44.90030512]
[1750589719566,6.66,133.37,133.33,44.90030512]
[1750589719757,5.61720229,133.36,133.33,44.90030512]
[1750589719957,5.61711189,133.36,133.33,44.90030512]
[1750589720167,6.66,133.37,133.33,44.90030512]
[1750589720348,5.61746761,133.36,133.33,44.90030512]
[1750589720548,6.66,133.37,133.33,44.90030512]
[1750589720874,5.61746761,133.36,133.33,44.90030512]
[1750589721052,6.66,133.37,133.33,44.90030512]
[1750589721374,5.61746761,133.36,133.33,44.90030512]
[1750589721675,6.66,133.37,133.33,44.90030512]
[1750589721972,5.61776221,133.36,133.33,44.90030512]
[1750589722174,6.66,133.37,133.33,44.90030512]
[1750589722367,5.61768494,133.36,133.33,44.90030512]
[1750589722876,6.66,133.37,133.33,44.90030512]
[1750589723367,5.61798543,133.36,133.33,44.90030512]
[1750589723968,6.66,133.37,133.33,44.90030512]
[1750589725154,5.61797657,133.36,133.33,44.90030512]
[1750589725350,6.66,133.37,133.33,26.14983636]
[1750589725553,5.6191237,133.36,133.33,26.14983636]
[1750589725779,5.6191237,133.35,133.33,26.14983636]
[1750589725978,6.66,133.37,133.33,26.14983636]
[1750589726157,5.61906098,133.36,133.33,26.14983636]
[1750589726356,5.61906098,133.35,133.33,26.14983636]
[1750589726655,6.66,133.37,133.33,26.14983636]
[1750589726859,5.61891562,133.36,133.33,26.14983636]
[1750589727052,5.61891562,133.35,133.33,26.14983636]
[1750589727373,6.66,133.37,133.33,26.14983636]
[1750589727582,5.61849421,133.36,133.33,26.14983636]
[1750589727878,5.61849421,133.35,133.33,26.14983636]
[1750589728079,6.66,133.37,133.33,26.14983636]
[1750589728277,5.61849421,133.36,133.33,26.14983636]
[1750589728472,6.66,133.37,133.33,26.14983636]
[1750589728473,5.61849421,133.35,133.33,26.14983636]
[1750589728670,5.61849421,133.36,133.33,26.14983636]
[1750589728883,5.61849421,133.35,133.33,26.14983636]
[1750589729090,5.61849421,133.36,133.33,26.14983636]
[1750589729262,5.61849421,133.35,133.33,26.14983636]
[1750589729463,6.66,133.37,133.33,26.14983636]
[1750589729760,5.61772903,133.36,133.33,26.14983636]
[1750589729967,5.61772903,133.35,133.33,26.14983636]
[1750589730311,6.66,133.37,133.33,26.14983636]
[1750589730469,5.61753178,133.36,133.33,26.14983636]
[1750589730676,5.61753178,133.35,133.33,26.14983636]
[1750589730866,6.66,133.37,133.33,26.14983636]
[1750589731069,5.61753178,133.36,133.33,26.14983636]
[1750589731267,5.61753178,133.35,133.33,26.14983636]
[1750589731470,5.61753178,133.34,133.33,26.14983636]
[1750589737591,5.61753178,133.34,133.3,26.0]
[1750589737592,12.25753178,133.34,133.3,18.64964886]
[1750589737767,5.61753178,133.33,133.28,7.50286314]
[1750589738091,5.61753178,133.32,133.28,7.50286314]
[1750589738287,5.61753178,133.31,133.28,7.50286314]
[1750589738466,5.61753178,133.3,133.28,7.50286314]
[1750589738667,5.61457106,133.29,133.28,26.152512]
[1750589738967,5.61457106,133.29,133.28,18.64964886]
[1750589739787,154.0723,133.33,133.28,18.64964886]
[1750589739788,5.61457106,133.31,133.29,18.64964886]
[1750589739976,154.0723,133.33,133.29,18.64964886]
[1750589740168,5.60889491,133.32,133.29,18.64964886]
[1750589740367,5.60889491,133.31,133.29,18.64964886]
[1750589740569,5.60889491,133.3,133.29,18.64964886]
[1750589740789,5.60889491,133.32,133.29,18.64964886]
[1750589740963,5.60889491,133.31,133.29,18.64964886]
[1750589741159,5.60889491,133.3,133.29,18.64964886]
[1750589741394,5.60889491,133.32,133.29,18.64964886]
[1750589741575,5.60889491,133.31,133.29,18.64964886]
[1750589741776,5.60889491,133.32,133.3,7.50187546]
[1750589742172,5.60889491,133.31,133.29,26.151895]
[1750589742372,5.60889491,133.32,133.29,26.151895]
[1750589742691,5.60889491,133.31,133.29,26.151895]
[1750589742864,5.60889491,133.32,133.29,26.151895]
[1750589743064,5.60889491,133.31,133.29,26.151895]
[1750589743261,5.60889491,133.32,133.29,26.151895]
[1750589743476,5.60889491,133.31,133.29,26.151895]
[1750589743675,5.60889491,133.32,133.29,18.64964886]
[1750589743874,5.60889491,133.31,133.29,18.64964886]
[1750589744168,5.60889491,133.32,133.29,18.64964886]
[1750589744396,5.60889491,133.31,133.29,18.64964886]
[1750589744577,5.60889491,133.32,133.29,18.64964886]
[1750589745963,5.60889491,133.32,133.28,7.50260426]
[1750589746798,5.60889491,133.31,133.28,7.50260426]
[1750589746973,5.60889491,133.32,133.28,7.50260426]
[1750589747173,5.60889491,133.31,133.28,7.50260426]
[1750589747383,5.60889491,133.32,133.28,7.50260426]
[1750589747975,154.0723,133.33,133.29,18.64964886]
[1750589748298,5.59597763,133.32,133.29,18.64964886]
[1750589749996,5.59597763,133.32,133.29,7.50218185]
[1750589751178,5.59597763,133.32,133.26,7.50412726]
[1750589751506,5.59597763,133.32,133.27,18.64964886]
[1750589753093,5.59597763,133.32,133.28,7.5030012]
[1750589753399,146.9,133.33,133.29,18.64964886]
[1750589755082,146.9,133.33,133.3,7.50187546]
[1750589756279,1.892,133.35,133.31,18.64964886]
[1750589756484,6.66,133.34,133.31,18.64964886]
[1750589757276,6.66,133.34,133.33,18.64964886]
[1750589757697,6.66,133.34,133.29,7.50243829]
[1750589757911,32.66,133.34,133.3,18.64964886]
[1750589758084,38.25200653,133.34,133.3,18.64964886]
[1750589759297,38.25200653,133.34,133.31,7.50131272]
[1750589760283,38.25200653,133.34,133.3,7.50178831]
[1750589761804,5.59200653,133.33,133.29,7.50243829]
[1750589762015,38.25200653,133.34,133.29,7.50243829]
[1750589762308,5.59200653,133.33,133.29,7.50243829]
[1750589764413,5.59200653,133.33,133.28,7.5030012]
[1750589767311,5.59200653,133.32,133.28,7.5030012]
[1750589767614,5.59200653,133.33,133.28,7.5030012]
[1750589767832,5.59200653,133.32,133.28,7.5030012]
[1750589767994,42.01599053,133.34,133.28,7.5030012]
[1750589767995,5.59200653,133.33,133.28,7.5030012]
[1750589768207,5.59200653,133.32,133.28,7.5030012]
[1750589768390,5.59200653,133.31,133.28,7.5030012]
[1750589768589,5.59200653,133.33,133.28,7.5030012]
[1750589768797,5.59200653,133.32,133.28,7.5030012]
[1750589769098,5.59200653,133.33,133.28,7.5030012]
[1750589769416,5.59200653,133.32,133.28,7.5030012]
[1750589769593,5.59200653,133.31,133.28,7.5030012]
[1750589769793,5.59200653,133.33,133.28,7.5030012]
[1750589769994,5.59200653,133.32,133.28,7.5030012]
[1750589770195,5.59200653,133.31,133.28,7.5030012]
[1750589770411,5.59200653,133.33,133.29,26.1517659]
[1750589770715,5.59200653,133.32,133.29,26.1517659]
[1750589770913,5.59200653,133.31,133.29,26.1517659]
[1750589771214,5.59200653,133.33,133.29,26.1517659]
[1750589771400,5.59200653,133.32,133.29,26.1517659]
[1750589771709,5.59200653,133.31,133.29,26.1517659]
[1750589771914,5.59200653,133.33,133.29,26.1517659]
[1750589772117,5.59200653,133.32,133.29,26.1517659]
[1750589772293,195.93298558,133.34,133.29,26.1517659]
[1750589772294,5.59200653,133.31,133.29,26.1517659]
[1750589772495,5.59200653,133.33,133.29,26.1517659]
[1750589772695,5.59200653,133.32,133.29,26.1517659]
[1750589772900,5.59200653,133.31,133.29,26.1517659]
[1750589773108,5.59200653,133.3,133.26,18.64964886]
[1750589773306,5.59200653,133.32,133.26,18.64964886]
[1750589773521,5.59200653,133.31,133.26,18.64964886]
[1750589773693,5.59200653,133.3,133.26,18.64964886]
[1750589774013,5.59200653,133.32,133.26,18.64964886]
[1750589775000,5.59200653,133.32,133.28,18.64964886]
[1750589775898,5.59200653,133.31,133.28,18.64964886]
[1750589776211,146.9,133.33,133.28,18.64964886]
[1750589776212,5.59200653,133.32,133.28,18.64964886]
[1750589776400,146.9,133.33,133.28,18.64964886]
[1750589776601,5.60794875,133.32,133.28,18.64964886]
[1750589776820,5.60793718,133.32,133.28,18.64964886]
[1750589777217,5.60793718,133.32,133.29,7.50243829]
[1750589777405,8.5162,133.34,133.3,18.64964886]
[1750589777604,5.60876033,133.33,133.3,18.64964886]
[1750589777821,8.5162,133.34,133.3,18.64964886]
[1750589778007,5.60876188,133.33,133.3,18.64964886]
[1750589778318,8.5162,133.34,133.3,18.64964886]
[1750589778530,5.60995049,133.33,133.32,18.64964886]
[1750589779395,5.60995049,133.33,133.32,7.50075007]
[1750589780219,6.66,133.34,133.33,18.64964886]
[1750589780432,12.27105568,133.34,133.33,18.64964886]
[1750589780798,12.27105568,133.34,133.3,18.64964886]
[1750589780999,5.61105568,133.33,133.3,18.64964886]
[1750589781307,6.66,133.34,133.3,7.50166921]
[1750589781308,5.61168703,133.32,133.3,7.50166921]
[1750589781637,6.66,133.34,133.3,7.50166921]
[1750589781934,5.6133642,133.33,133.3,7.50166921]
[1750589782118,5.6133642,133.32,133.3,7.50166921]
[1750589782319,6.66,133.34,133.3,7.50166921]
[1750589782503,5.6151779,133.33,133.3,7.50166921]
[1750589782704,5.6151779,133.32,133.3,7.50166921]
[1750589783002,6.66,133.34,133.3,7.50166921]
[1750589783210,5.6151779,133.33,133.3,7.50166921]
[1750589783405,5.6151779,133.32,133.3,7.50166921]
[1750589783613,6.66,133.34,133.3,7.50166921]
[1750589783816,5.61475899,133.33,133.31,18.64964886]
[1750589784020,6.66,133.34,133.31,18.64964886]
[1750589785312,6.66,133.34,133.33,18.64964886]
[1750589785609,12.27196509,133.34,133.33,18.64964886]
[1750589786230,6.66,133.34,133.33,18.64964886]
[1750589786432,12.27196509,133.34,133.33,7.5001875]
[1750589786611,6.66,133.34,133.33,7.5001875]
[1750589786812,12.27196509,133.34,133.33,7.5001875]
[1750589787031,6.66,133.34,133.33,7.5001875]
[1750589787215,12.27196509,133.34,133.33,7.5001875]
[1750589787414,6.66,133.34,133.33,7.5001875]
[1750589787735,12.27196509,133.34,133.33,18.64964886]
[1750589789030,12.27196509,133.34,133.33,7.5001875]
[1750589789631,12.27196509,133.34,133.28,18.75730358]
[1750589789823,5.61196509,133.33,133.26,18.64964886]
[1750589790136,5.61196509,133.32,133.26,18.64964886]
[1750589790387,5.61196509,133.31,133.26,18.64964886]
[1750589790635,5.61196509,133.3,133.26,18.64964886]
[1750589790838,5.61196509,133.29,133.26,26.15377612]
[1750589791012,5.61196509,133.28,133.26,26.15377612]
[1750589791335,6.64,133.28,133.26,26.15377612]
[1750589791537,5.61170152,133.27,133.26,26.15377612]
[1750589792035,5.61170152,133.27,133.21,46.92127749]
[1750589792036,6.64,133.28,133.24,44.91803672]
[1750589792334,6.64,133.28,133.24,70.91803672]
[1750589793931,12.23024957,133.32,133.24,70.91803672]
[1750589794235,27.7999,133.33,133.24,70.91803672]
[1750589794438,12.23024803,133.32,133.24,70.91803672]
[1750589794735,5.61053429,133.31,133.24,70.91803672]
[1750589795116,6.62,133.32,133.24,70.91803672]
[1750589795427,5.61090588,133.31,133.24,70.91803672]
[1750589795736,6.62,133.32,133.24,70.91803672]
[1750589795938,5.61074119,133.31,133.24,70.91803672]
[1750589796141,5.61074119,133.3,133.24,70.91803672]
[1750589796441,5.61074119,133.31,133.24,70.91803672]
[1750589796619,5.61074119,133.3,133.24,70.91803672]
[1750589796819,5.61074119,133.31,133.24,70.91803672]
[1750589797039,5.61074119,133.3,133.24,70.91803672]
[1750589797343,5.61074119,133.31,133.24,70.91803672]
[1750589797639,5.61074119,133.3,133.24,70.91803672]
[1750589797857,5.61074119,133.31,133.24,70.91803672]
[1750589798036,5.61074119,133.3,133.24,70.91803672]
[1750589798242,14.12094025,133.32,133.24,70.91803672]
[1750589798540,5.61179454,133.31,133.24,70.91803672]
[1750589798732,5.61179454,133.3,133.24,70.91803672]
[1750589798936,6.62,133.32,133.24,70.91803672]
[1750589799240,5.61182715,133.31,133.24,70.91803672]
[1750589799539,6.62,133.32,133.24,70.91803672]
[1750589799838,5.61139347,133.31,133.24,70.91803672]
[1750589800039,5.61139347,133.3,133.24,70.91803672]
[1750589800240,5.61139347,133.31,133.24,70.91803672]
[1750589800433,5.61139347,133.3,133.24,70.91803672]